[Event "9th Bangabandhu Team Mixed 2021"]
[Site "Dhaka"]
[Date "2021.04.06"]
[Round "3.1"]
[White "Chowdhury, Sohel"]
[Black "Anata, Choudhury"]
[Result "1/2-1/2"]
[ECO "B25"]
[WhiteElo "2091"]
[BlackElo "2184"]
[Annotator "ChessBase"]
[PlyCount "64"]
[EventDate "2021.04.04"]
[EventType "team-tourn"]
[EventCountry "BAN"]
[SourceTitle "playchess.com"]
[Source "ChessBase"]
[SourceQuality "1"]
[TimeControl "5400+30"]

1. e4 {[%emt 0:00:00]} c5 {[%emt 0:00:00]} 2. Nc3 {[%emt 0:00:05]} Nc6 {[%emt 0:00:00]} 3. g3 {[%emt 0:00:11]} g6 {[%emt 0:00:09]} 4. Bg2 {[%emt 0:00:06]} Bg7 {[%emt 0:00:06]} 5. d3 {[%emt 0:00:10]} d6 {[%emt 0:00:07]} 6. Nh3 {[%emt 0:00:07]} e6 {[%emt 1:32:38]} 7. O-O {[%emt 0:02:51]} Nge7 {[%emt 0:00:00]} 8. f4 {[%emt 0:00:09]} O-O {[%emt 0:01:00]} 9. Be3 {[%emt 0:03:09]} Rb8 {[%emt 0:00:30]} 10. Qd2 {[%emt 1:28:12]} b6 {[%emt 0:00:30]} 11. g4 {[%emt 0:00:00]} d5 {[%emt 0:00:30]} 12. Nd1 {[%emt 0:00:00]} dxe4 {[%emt 0:00:00]} 13. Bxe4 {[%emt 0:00:00]} f5 {[%emt 0:00:00]} 14. gxf5 {[%emt 0:00:00]} exf5 {[%emt 0:00:00]} 15. Bg2 {[%emt 0:00:00]} Bb7 {[%emt 0:00:00]} 16. Ng5 {[%emt 0:03:00]} Qd7 {[%emt 0:00:00]} 17. Nc3 {[%emt 0:00:30]} Rbe8 {[%emt 0:00:00]} 18. Rae1 {[%emt 0:00:00]} Nd4 {[%emt 0:00:00]} 19. Nf3 {[%emt 0:01:00]} Nxf3+ {[%emt 0:00:00]} 20. Bxf3 {[%emt 0:00:00]} Bxf3 {[%emt 0:00:00]} 21. Rxf3 {[%emt 0:00:00]} Nd5 {[%emt 0:00:00]} 22. Bf2 {[%emt 0:01:30]} Rxe1+ {[%emt 0:00:00]} 23. Qxe1 {[%emt 0:00:00]} Re8 {[%emt 0:00:00]} 24. Qd2 {[%emt 0:01:00]} Kf7 {[%emt 0:00:00]} 25. Rh3 {[%emt 0:00:00]} Nf6 {[%emt 0:00:00]} 26. Re3 {[%emt 0:00:00]} Ng4 {[%emt 0:00:00]} 27. Rxe8 {[%emt 0:00:00]} Qxe8 {[%emt 0:00:00]} 28. h3 {[%emt 0:00:00]} Nxf2 {[%emt 0:00:00]} 29. Kxf2 {[%emt 0:00:00]} Bd4+ {[%emt 0:00:00]} 30. Kg3 {[%emt 0:03:00]} Qe7 {[%emt 0:00:00]} 31. Nd5 {[%emt 0:00:00]} Qe6 {[%emt 0:00:00]} 32. c4 {[%emt 0:00:00]} h6 {[%emt 0:00:00]} 1/2-1/2

[Event "9th Bangabandhu Team Mixed 2021"]
[Site "Dhaka"]
[Date "2021.04.06"]
[Round "3.2"]
[White "Mollah Abdullah, Al Rakib"]
[Black "Masum, Hossain"]
[Result "1-0"]
[ECO "D03"]
[WhiteElo "2464"]
[BlackElo "2061"]
[Annotator "ChessBase"]
[PlyCount "61"]
[EventDate "2021.04.04"]
[EventType "team-tourn"]
[EventCountry "BAN"]
[SourceTitle "playchess.com"]
[Source "ChessBase"]
[SourceQuality "1"]
[TimeControl "5400+30"]

1. d4 {[%emt 0:00:00]} d5 {[%emt 0:00:00]} 2. Nf3 {[%emt 0:00:00]} Nf6 {[%emt 0:00:00]} 3. Bg5 {[%emt 0:00:13]} e6 {[%emt 0:00:26]} 4. e3 {[%emt 0:00:48]} a6 {[%emt 0:00:43]} 5. Nbd2 {[%emt 0:01:35]} Be7 {[%emt 0:00:47]} 6. Bd3 {[%emt 0:00:21]} Nbd7 {[%emt 0:00:21]} 7. a4 {[%emt 0:01:00]} c5 {[%emt 0:00:17]} 8. c3 {[%emt 0:00:07]} h6 {[%emt 0:00:19]} 9. Bh4 {[%emt 0:03:42]} Qc7 {[%emt 0:03:30]} 10. O-O {[%emt 0:01:31]} O-O {[%emt 0:00:18]} 11. a5 {[%emt 0:05:40]} e5 {[%emt 0:02:09]} 12. e4 {[%emt 0:03:26]} dxe4 {[%emt 0:32:36]} 13. Nxe4 {[%emt 0:00:36]} Re8 {[%emt 0:00:17]} 14. Nxf6+ {[%emt 0:06:51]} Bxf6 {[%emt 0:01:27]} 15. Bg3 {[%emt 0:04:17]} Qc6 {[%emt 0:12:41]} 16. Re1 {[%emt 0:07:02]} e4 {[%emt 0:06:38]} 17. Qe2 {[%emt 0:05:56]} g6 {[%emt 0:05:25]} 18. Bxe4 {[%emt 0:01:21]} Qb5 {[%emt 0:01:03]} 19. Qxb5 {[%emt 0:10:20]} axb5 {[%emt 0:01:49]} 20. Bd3 {[%emt 0:04:06]} Rxe1+ {[%emt 0:03:05]} 21. Rxe1 {[%emt 0:00:08]} c4 {[%emt 0:00:29]} 22. Re8+ {[%emt 0:00:35]} Kg7 {[%emt 0:00:04]} 23. Bf1 {[%emt 0:01:43]} b6 {[%emt 0:04:53]} 24. a6 {[%emt 0:00:17]} Bb7 {[%emt 0:00:26]} 25. Rxa8 {[%emt 0:00:02]} Bxa8 {[%emt 0:00:11]} 26. Nd2 {[%emt 0:03:58]} Bg5 {[%emt 0:04:02]} 27. Be2 {[%emt 0:00:48]} Bxd2 {[%emt 0:10:01]} 28. Bf3 {[%emt 0:00:23]} Bxf3 {[%emt 0:09:07]} 29. gxf3 {[%emt 0:00:03]} b4 {[%emt 0:00:19]} 30. a7 {[%emt 0:01:47]} bxc3 {[%emt 0:00:06]} 31. bxc3 {[%emt 0:00:07]} 1-0

[Event "9th Bangabandhu Team Mixed 2021"]
[Site "Dhaka"]
[Date "2021.04.06"]
[Round "3.3"]
[White "Jabed Al Azad"]
[Black "Mehdi Hasan Parag"]
[Result "1/2-1/2"]
[ECO "C92"]
[WhiteElo "1983"]
[BlackElo "2192"]
[Annotator "ChessBase"]
[PlyCount "112"]
[EventDate "2021.04.04"]
[EventType "team-tourn"]
[EventCountry "BAN"]
[SourceTitle "playchess.com"]
[Source "ChessBase"]
[SourceQuality "1"]
[TimeControl "5400+30"]

1. e4 {[%emt 0:00:00]} e5 {[%emt 0:00:00]} 2. Nf3 {[%emt 0:00:16]} Nc6 {[%emt 0:00:00]} 3. Bb5 {[%emt 0:00:32]} a6 {[%emt 0:00:00]} 4. Ba4 {[%emt 0:00:08]} Nf6 {[%emt 0:00:00]} 5. O-O {[%emt 0:00:21]} Be7 {[%emt 0:00:04]} 6. Re1 {[%emt 0:00:08]} b5 {[%emt 0:00:05]} 7. Bb3 {[%emt 0:00:05]} d6 {[%emt 1:33:21]} 8. c3 {[%emt 0:01:56]} O-O {[%emt 0:00:00]} 9. h3 {[%emt 0:00:28]} Bb7 {[%emt 0:00:00]} 10. d4 {[%emt 0:00:57]} Re8 {[%emt 0:01:30]} 11. a4 {[%emt 0:08:15]} Bf8 {[%emt 0:00:00]} 12. Bg5 {[%emt 0:04:50]} h6 {[%emt 0:00:00]} 13. Bxf6 {[%emt 0:01:25]} Qxf6 {[%emt 0:00:00]} 14. Bd5 {[%emt 0:00:06]} Rab8 {[%emt 0:00:00]} 15. axb5 {[%emt 0:01:30]} axb5 {[%emt 0:00:00]} 16. Na3 {[%emt 1:17:03]} Ne7 {[%emt 0:00:00]} 17. Bxb7 {[%emt 0:00:00]} Rxb7 {[%emt 0:00:00]} 18. Qd3 {[%emt 0:00:00]} Ng6 {[%emt 0:00:00]} 19. g3 {[%emt 0:00:00]} c5 {[%emt 0:00:00]} 20. d5 {[%emt 0:00:00]} c4 {[%emt 0:00:00]} 21. Qe2 {[%emt 0:00:00]} Qd8 {[%emt 0:00:00]} 22. Nc2 {[%emt 0:00:00]} Qd7 {[%emt 0:00:00]} 23. Kg2 {[%emt 0:00:00]} Be7 {[%emt 0:00:00]} 24. Nd2 {[%emt 0:00:00]} Bg5 {[%emt 0:00:00]} 25. Ne3 {[%emt 0:00:00]} Ne7 {[%emt 0:00:00]} 26. Ndf1 {[%emt 0:05:00]} g6 {[%emt 0:00:00]} 27. Qg4 {[%emt 0:00:00]} Rd8 {[%emt 0:00:00]} 28. Qxd7 {[%emt 0:00:00]} Rdxd7 {[%emt 0:00:00]} 29. Ra6 {[%emt 0:00:00]} Nc8 {[%emt 0:00:00]} 30. Ra8 {[%emt 0:00:00]} Rdc7 {[%emt 0:00:00]} 31. Rea1 {[%emt 0:00:00]} Kg7 {[%emt 0:00:00]} 32. h4 {[%emt 0:00:00]} Be7 {[%emt 0:00:00]} 33. Nc2 {[%emt 0:00:00]} Nb6 {[%emt 0:00:00]} 34. R8a6 {[%emt 0:00:00]} Na4 {[%emt 0:12:00]} 35. Rb1 {[%emt 0:00:00]} Nc5 {[%emt 0:00:30]} 36. Rc6 {[%emt 0:05:00]} Nxe4 {[%emt 0:00:00]} 37. Rxc7 {[%emt 0:00:00]} Rxc7 {[%emt 0:00:00]} 38. Ra1 {[%emt 0:00:00]} Nc5 {[%emt 0:00:00]} 39. Ra5 {[%emt 0:00:00]} Rb7 {[%emt 0:00:00]} 40. Na3 {[%emt 0:00:00]} b4 {[%emt 0:00:00]} 41. Nxc4 {[%emt 0:00:00]} bxc3 {[%emt 0:00:00]} 42. bxc3 {[%emt 0:00:00]} Rb3 {[%emt 0:00:00]} 43. Ra7 {[%emt 0:00:00]} Bf8 {[%emt 0:00:00]} 44. Ra3 {[%emt 0:00:00]} Rxa3 {[%emt 0:00:00]} 45. Nxa3 {[%emt 0:00:00]} f5 {[%emt 0:00:00]} 46. Ne3 {[%emt 0:00:00]} Kf7 {[%emt 0:00:00]} 47. h5 {[%emt 0:00:00]} f4 {[%emt 0:00:00]} 48. gxf4 {[%emt 0:00:00]} exf4 {[%emt 0:00:00]} 49. hxg6+ {[%emt 0:00:00]} Kxg6 {[%emt 0:00:00]} 50. Nec4 {[%emt 0:00:00]} Kf5 {[%emt 0:00:00]} 51. f3 {[%emt 0:00:00]} Na4 {[%emt 0:00:00]} 52. Nb5 {[%emt 0:00:00]} Kg6 {[%emt 0:00:00]} 53. Kh3 {[%emt 0:00:00]} Kh5 {[%emt 0:00:00]} 54. Kg2 {[%emt 0:00:00]} Be7 {[%emt 0:00:00]} 55. Kh3 {[%emt 0:00:00]} Bf8 {[%emt 0:00:00]} 56. Kg2 {[%emt 0:00:00]} Be7 {[%emt 0:00:00]} 1/2-1/2

[Event "9th Bangabandhu Team Mixed 2021"]
[Site "Dhaka"]
[Date "2021.04.06"]
[Round "3.4"]
[White "Sultana, Zakia"]
[Black "Nusrat Jahan, Alo"]
[Result "1-0"]
[ECO "D02"]
[WhiteElo "1786"]
[BlackElo "1712"]
[Annotator "NA"]
[PlyCount "107"]
[EventDate "2021.04.04"]
[EventType "team-tourn"]
[EventCountry "BAN"]
[SourceTitle "playchess.com"]
[Source "ChessBase"]
[SourceQuality "1"]
[TimeControl "5400+30"]

1. d4 {[%emt 0:00:00]} d5 {[%emt 0:00:00]} 2. Nf3 {[%emt 0:00:00]} Nf6 {[%emt 0:00:03]} 3. Bf4 {[%emt 0:00:00]} Bf5 {[%emt 0:00:21]} 4. e3 {[%emt 0:00:08]} e6 {[%emt 0:00:21]} 5. Nbd2 {[%emt 0:00:38]} Bd6 {[%emt 0:00:22]} 6. Bg3 {[%emt 0:00:19]} O-O {[%emt 0:01:12]} 7. Be2 {[%emt 0:00:14]} Nbd7 {[%emt 0:02:04]} 8. c3 {[%emt 0:00:41]} Re8 {[%emt 0:01:38]} 9. Ne5 {[%emt 0:01:14]} Bxe5 {[%emt 0:04:39]} 10. dxe5 {[%emt 0:00:41]} Ne4 {[%emt 0:00:38]} 11. Nxe4 {[%emt 0:01:02]} Bxe4 {[%emt 0:01:44]} 12. O-O {[%emt 0:01:04]} c6 {[%emt 0:05:26]} 13. Qd2 {[%emt 0:02:06]} Qc7 {[%emt 0:06:42]} 14. f4 {[%emt 0:01:18]} f6 {[%emt 0:04:20]} 15. exf6 {[%emt 0:00:55]} Nxf6 {[%emt 0:00:45]} 16. Bf3 {[%emt 0:05:58]} Bf5 {[%emt 0:06:01]} 17. a4 {[%emt 0:06:00]} Ne4 {[%emt 0:06:10]} 18. Bxe4 {[%emt 0:02:22]} Bxe4 {[%emt 0:00:24]} 19. a5 {[%emt 0:02:27]} a6 {[%emt 0:01:16]} 20. b4 {[%emt 0:01:18]} Bf5 {[%emt 0:02:28]} 21. Qd4 {[%emt 0:00:52]} Rac8 {[%emt 0:10:53]} 22. Qc5 {[%emt 0:01:56]} Qe7 {[%emt 0:01:46]} 23. Rf2 {[%emt 0:05:44]} g6 {[%emt 0:06:22]} 24. Rd2 {[%emt 0:02:49]} Qxc5 {[%emt 0:03:47]} 25. bxc5 {[%emt 0:00:16]} Rc7 {[%emt 0:05:24]} 26. h3 {[%emt 0:01:24]} h5 {[%emt 0:01:22]} 27. Ra4 {[%emt 0:00:31]} Rd7 {[%emt 0:01:44]} 28. Rb4 {[%emt 0:01:03]} Ree7 {[%emt 0:02:56]} 29. Kf2 {[%emt 0:02:46]} Rf7 {[%emt 0:02:11]} 30. Kg1 {[%emt 0:01:46]} Kg7 {[%emt 0:01:44]} 31. Rbd4 {[%emt 0:00:22]} Kf8 {[%emt 0:01:46]} 32. Kh2 {[%emt 0:01:41]} Kg7 {[%emt 0:01:44]} 33. Bh4 {[%emt 0:00:47]} Kf8 {[%emt 0:01:57]} 34. Bg5 {[%emt 0:01:51]} Kg7 {[%emt 0:02:53]} 35. Kg3 {[%emt 0:00:48]} Kf8 {[%emt 0:01:18]} 36. Kh4 {[%emt 0:01:17]} Rh7 {[%emt 0:01:01]} 37. Bf6 {[%emt 0:00:42]} Kf7 {[%emt 0:04:17]} 38. Be5 {[%emt 0:00:53]} Re7 {[%emt 0:02:32]} 39. Rb4 {[%emt 0:03:41]} Ke8 {[%emt 0:00:28]} 40. Bf6 {[%emt 0:02:33]} Ref7 {[%emt 0:00:35]} 41. Bg5 {[%emt 0:00:10]} Rd7 {[%emt 0:00:59]} 42. Rbd4 {[%emt 0:01:07]} Rc7 {[%emt 0:01:54]} 43. Kg3 {[%emt 0:05:06]} Rhf7 {[%emt 0:00:47]} 44. e4 {[%emt 0:02:10]} Bxe4 {[%emt 0:01:02]} 45. Rxe4 {[%emt 0:00:24]} Kd7 {[%emt 0:00:38]} 46. Re5 {[%emt 0:00:53]} Rc8 {[%emt 0:00:39]} 47. Rb2 {[%emt 0:02:52]} Rb8 {[%emt 0:00:12]} 48. Rbe2 {[%emt 0:01:28]} Re8 {[%emt 0:00:17]} 49. Kf3 {[%emt 0:00:27]} Rf5 {[%emt 0:00:37]} 50. g4 {[%emt 0:00:25]} hxg4+ {[%emt 0:00:43]} 51. hxg4 {[%emt 0:00:01]} Rxe5 {[%emt 0:00:18]} 52. fxe5 {[%emt 0:01:12]} Rf8+ {[%emt 0:00:11]} 53. Bf6 {[%emt 0:00:04]} Rf7 {[%emt 0:00:27]} 54. Rh2 {[%emt 0:00:15]} 1-0

[Event "9th Bangabandhu Team Mixed 2021"]
[Site "Dhaka"]
[Date "2021.04.06"]
[Round "3.5"]
[White "Rahman, Ziaur"]
[Black "Islam, Khandaker Aminul"]
[Result "1-0"]
[ECO "E04"]
[WhiteElo "2432"]
[BlackElo "2210"]
[Annotator "ChessBase"]
[PlyCount "115"]
[EventDate "2021.04.04"]
[EventType "team-tourn"]
[EventCountry "BAN"]
[SourceTitle "playchess.com"]
[Source "ChessBase"]
[SourceQuality "1"]
[TimeControl "5400+30"]

1. d4 {[%emt 0:00:00]} e6 {[%emt 0:00:00]} 2. Nf3 {[%emt 0:02:13]} Nf6 {[%emt 0:00:00]} 3. g3 {[%emt 0:00:14]} d5 {[%emt 0:00:16]} 4. Bg2 {[%emt 0:00:05]} c5 {[%emt 0:02:12]} 5. O-O {[%emt 0:00:08]} Nc6 {[%emt 0:04:08]} 6. c4 {[%emt 0:00:09]} dxc4 {[%emt 0:00:13]} 7. Ne5 {[%emt 0:00:36]} Bd7 {[%emt 0:00:02]} 8. Na3 {[%emt 0:00:31]} cxd4 {[%emt 0:03:22]} 9. Naxc4 {[%emt 0:00:09]} Bc5 {[%emt 0:01:50]} 10. Qb3 {[%emt 0:00:31]} Nxe5 {[%emt 0:01:48]} 11. Nxe5 {[%emt 0:00:15]} O-O {[%emt 0:02:05]} 12. Bf4 {[%emt 0:05:50]} Bc8 {[%emt 0:04:14]} 13. Rac1 {[%emt 0:01:26]} Qb6 {[%emt 0:03:10]} 14. Qc2 {[%emt 0:08:08]} Be7 {[%emt 1:13:40]} 15. a3 {[%emt 0:10:27]} Nd5 {[%emt 0:00:00]} 16. Nc4 {[%emt 0:02:45]} Qa6 {[%emt 0:00:00]} 17. Be5 {[%emt 0:03:07]} Bd7 {[%emt 0:01:30]} 18. Be4 {[%emt 0:01:56]} h6 {[%emt 0:00:00]} 19. Bh7+ {[%emt 0:00:43]} Kh8 {[%emt 0:00:00]} 20. Bd3 {[%emt 0:00:09]} Bf6 {[%emt 0:01:30]} 21. Bxf6 {[%emt 0:05:35]} Nxf6 {[%emt 0:00:00]} 22. Ne5 {[%emt 0:00:40]} Bb5 {[%emt 0:00:00]} 23. Rfd1 {[%emt 0:03:46]} Kg8 {[%emt 0:00:00]} 24. Nf3 {[%emt 0:02:50]} Rad8 {[%emt 0:00:00]} 25. Bxb5 {[%emt 0:00:32]} Qxb5 {[%emt 0:02:30]} 26. Rxd4 {[%emt 0:02:45]} Rxd4 {[%emt 0:00:00]} 27. Nxd4 {[%emt 0:00:06]} Qh5 {[%emt 0:00:00]} 28. Nf3 {[%emt 0:00:48]} e5 {[%emt 0:00:00]} 29. Qc5 {[%emt 0:02:55]} Re8 {[%emt 0:00:00]} 30. h4 {[%emt 0:10:37]} Qg4 {[%emt 0:00:00]} 31. Qc4 {[%emt 0:02:21]} e4 {[%emt 0:00:00]} 32. Nh2 {[%emt 0:00:03]} Qd7 {[%emt 0:00:00]} 33. e3 {[%emt 0:00:41]} a6 {[%emt 0:00:00]} 34. Kg2 {[%emt 0:00:08]} Qd2 {[%emt 0:00:00]} 35. Rc2 {[%emt 0:01:21]} Qd1 {[%emt 0:00:00]} 36. Qe2 {[%emt 0:01:12]} Qd5 {[%emt 0:00:00]} 37. Rd2 {[%emt 0:00:30]} Qf5 {[%emt 0:00:00]} 38. Qd1 {[%emt 0:01:15]} Re5 {[%emt 0:00:00]} 39. Rd8+ {[%emt 0:01:06]} Kh7 {[%emt 0:00:00]} 40. Rd4 {[%emt 0:03:30]} Rc5 {[%emt 0:00:00]} 41. g4 {[%emt 0:04:42]} Qe6 {[%emt 0:00:00]} 42. Rd6 {[%emt 0:00:19]} Qc8 {[%emt 0:00:00]} 43. Rd8 {[%emt 0:02:22]} Qe6 {[%emt 0:09:00]} 44. Qd6 {[%emt 0:01:46]} Rc2 {[%emt 0:00:30]} 45. Qxe6 {[%emt 0:05:17]} fxe6 {[%emt 0:00:00]} 46. Rd6 {[%emt 0:00:45]} Rxb2 {[%emt 0:00:00]} 47. Rxe6 {[%emt 0:16:16]} Kg6 {[%emt 0:00:00]} 48. Re7 {[%emt 0:00:00]} a5 {[%emt 0:02:00]} 49. Kg3 {[%emt 0:00:00]} b5 {[%emt 0:00:00]} 50. Re5 {[%emt 0:00:00]} a4 {[%emt 0:00:00]} 51. g5 {[%emt 0:00:00]} hxg5 {[%emt 0:00:00]} 52. hxg5 {[%emt 0:00:00]} Nd7 {[%emt 0:01:14]} 53. Rxe4 {[%emt 0:00:00]} Nc5 {[%emt 0:00:26]} 54. Rd4 {[%emt 0:00:00]} b4 {[%emt 0:01:20]} 55. axb4 {[%emt 0:00:00]} Nb3 {[%emt 0:00:00]} 56. Rd6+ {[%emt 0:00:00]} Kh7 {[%emt 0:00:00]} 57. g6+ {[%emt 0:00:00]} Kh6 {[%emt 0:01:30]} 58. Kh4 {[%emt 0:00:00]} 1-0

[Event "9th Bangabandhu Team Mixed 2021"]
[Site "Dhaka"]
[Date "2021.04.06"]
[Round "3.6"]
[White "Mohammad Minhaz Uddin"]
[Black "Reefat, Bin-Sattar"]
[Result "1/2-1/2"]
[ECO "C03"]
[WhiteElo "2281"]
[BlackElo "2401"]
[Annotator "ChessBase"]
[PlyCount "143"]
[EventDate "2021.04.04"]
[EventType "team-tourn"]
[EventCountry "BAN"]
[SourceTitle "playchess.com"]
[Source "ChessBase"]
[SourceQuality "1"]
[TimeControl "5400+30"]

1. e4 {[%emt 0:00:00]} e6 {[%emt 0:00:00]} 2. d4 {[%emt 0:00:00]} d5 {[%emt 0:00:00]} 3. Nd2 {[%emt 0:00:00]} Be7 {[%emt 0:00:48]} 4. Bd3 {[%emt 0:00:06]} c5 {[%emt 0:00:07]} 5. dxc5 {[%emt 0:00:39]} Nf6 {[%emt 0:00:10]} 6. Qe2 {[%emt 0:01:17]} O-O {[%emt 0:04:04]} 7. Ngf3 {[%emt 0:02:07]} a5 {[%emt 0:00:06]} 8. exd5 {[%emt 0:17:16]} exd5 {[%emt 0:26:35]} 9. O-O {[%emt 0:02:46]} Re8 {[%emt 0:05:03]} 10. Nb3 {[%emt 0:11:47]} a4 {[%emt 0:11:37]} 11. Nbd4 {[%emt 0:00:53]} Bxc5 {[%emt 0:00:02]} 12. Be3 {[%emt 0:00:28]} Bg4 {[%emt 0:00:11]} 13. c3 {[%emt 0:10:08]} Bxd4 {[%emt 0:08:42]} 14. cxd4 {[%emt 0:00:04]} Nc6 {[%emt 0:00:38]} 15. Qd2 {[%emt 0:03:08]} Ne4 {[%emt 0:18:40]} 16. Bxe4 {[%emt 0:01:13]} dxe4 {[%emt 0:01:49]} 17. Ne5 {[%emt 0:03:03]} Nxe5 {[%emt 0:01:00]} 18. dxe5 {[%emt 0:00:03]} Rxe5 {[%emt 0:00:46]} 19. Qxd8+ {[%emt 0:01:49]} Rxd8 {[%emt 0:00:01]} 20. h3 {[%emt 0:00:07]} Be2 {[%emt 0:03:29]} 21. Rfe1 {[%emt 0:00:03]} Bd3 {[%emt 0:00:08]} 22. Rad1 {[%emt 0:02:03]} f5 {[%emt 0:07:21]} 23. Bg5 {[%emt 0:02:42]} Rd7 {[%emt 0:00:45]} 24. Bf4 {[%emt 0:00:37]} Rc5 {[%emt 0:01:12]} 25. Rd2 {[%emt 0:00:32]} h6 {[%emt 0:01:15]} 26. h4 {[%emt 0:00:02]} Kf7 {[%emt 0:00:22]} 27. f3 {[%emt 0:06:05]} Rdd5 {[%emt 0:02:39]} 28. fxe4 {[%emt 0:00:23]} Bxe4 {[%emt 0:02:11]} 29. Red1 {[%emt 0:02:20]} Kg6 {[%emt 0:02:33]} 30. Kf2 {[%emt 0:18:27]} Kh5 {[%emt 0:00:13]} 31. g3 {[%emt 0:00:03]} Rxd2+ {[%emt 0:00:38]} 32. Rxd2 {[%emt 0:00:01]} g5 {[%emt 0:00:34]} 33. hxg5 {[%emt 0:00:02]} hxg5 {[%emt 0:00:04]} 34. Bd6 {[%emt 0:07:02]} Rc1 {[%emt 0:01:58]} 35. Re2 {[%emt 0:00:14]} Kg4 {[%emt 0:00:27]} 36. Re1 {[%emt 0:00:09]} Rc2+ {[%emt 0:00:29]} 37. Re2 {[%emt 0:00:01]} Rc6 {[%emt 0:00:16]} 38. Be5 {[%emt 0:00:33]} Re6 {[%emt 0:00:46]} 39. Bb8 {[%emt 0:00:58]} Rh6 {[%emt 0:00:17]} 40. Ke3 {[%emt 0:01:36]} Rh1 {[%emt 0:00:17]} 41. a3 {[%emt 0:00:53]} Rd1 {[%emt 0:01:24]} 42. Rd2 {[%emt 0:00:11]} f4+ {[%emt 0:00:29]} 43. gxf4 {[%emt 0:00:04]} gxf4+ {[%emt 0:00:06]} 44. Ke2 {[%emt 0:01:17]} Rb1 {[%emt 0:01:04]} 45. Kf2 {[%emt 0:01:15]} Rh1 {[%emt 0:00:20]} 46. Rd4 {[%emt 0:00:26]} Rh2+ {[%emt 0:00:16]} 47. Kg1 {[%emt 0:00:05]} Re2 {[%emt 0:00:34]} 48. Kf1 {[%emt 0:00:48]} Kf3 {[%emt 0:00:17]} 49. Bxf4 {[%emt 0:00:50]} Rxb2 {[%emt 0:00:11]} 50. Bc1 {[%emt 0:01:14]} Rb1 {[%emt 0:01:23]} 51. Rd1 {[%emt 0:00:04]} b5 {[%emt 0:00:25]} 52. Re1 {[%emt 0:01:21]} Bd3+ {[%emt 0:00:09]} 53. Kg1 {[%emt 0:00:01]} Be2 {[%emt 0:00:24]} 54. Bd2 {[%emt 0:00:02]} Rb2 {[%emt 0:00:35]} 55. Ba5 {[%emt 0:01:45]} Bc4 {[%emt 0:00:58]} 56. Re8 {[%emt 0:01:37]} Rg2+ {[%emt 0:00:25]} 57. Kh1 {[%emt 0:00:01]} Ra2 {[%emt 0:00:13]} 58. Bb4 {[%emt 0:00:18]} Bd5 {[%emt 0:00:17]} 59. Kg1 {[%emt 0:01:04]} Be4 {[%emt 0:00:38]} 60. Bc5 {[%emt 0:00:43]} Ra1+ {[%emt 0:00:39]} 61. Kh2 {[%emt 0:00:01]} Rc1 {[%emt 0:00:27]} 62. Rf8+ {[%emt 0:00:02]} Ke2 {[%emt 0:00:36]} 63. Bb4 {[%emt 0:00:45]} Bd5 {[%emt 0:00:43]} 64. Kg3 {[%emt 0:00:27]} Rc4 {[%emt 0:00:23]} 65. Bd6 {[%emt 0:00:51]} Kd3 {[%emt 0:00:28]} 66. Rf5 {[%emt 0:00:16]} Bc6 {[%emt 0:00:18]} 67. Rc5 {[%emt 0:00:56]} Bd7 {[%emt 0:00:30]} 68. Kf2 {[%emt 0:02:05]} Kd4 {[%emt 0:00:25]} 69. Rxc4+ {[%emt 0:00:46]} bxc4 {[%emt 0:00:06]} 70. Ke2 {[%emt 0:01:35]} Kc3 {[%emt 0:00:13]} 71. Bb4+ {[%emt 0:01:48]} Kc2 {[%emt 0:00:04]} 72. Ke3 {[%emt 0:00:05]} 1/2-1/2

[Event "9th Bangabandhu Team Mixed 2021"]
[Site "Dhaka"]
[Date "2021.04.06"]
[Round "3.7"]
[White "Mohammad Fahad, Rahman"]
[Black "Subrota, Biswas"]
[Result "0-1"]
[ECO "B12"]
[WhiteElo "2321"]
[BlackElo "2256"]
[Annotator "ChessBase"]
[PlyCount "72"]
[EventDate "2021.04.04"]
[EventType "team-tourn"]
[EventCountry "BAN"]
[SourceTitle "playchess.com"]
[Source "ChessBase"]
[SourceQuality "1"]
[TimeControl "5400+30"]

1. e4 {[%emt 1:30:30]} c6 {[%emt 1:30:30]} 2. d4 {[%emt 0:00:00]} d5 {[%emt 0:00:00]} 3. e5 {[%emt 0:00:00]} Bf5 {[%emt 0:01:00]} 4. h4 {[%emt 0:00:00]} h5 {[%emt 0:00:00]} 5. c4 {[%emt 0:00:00]} e6 {[%emt 0:00:00]} 6. Nc3 {[%emt 0:00:00]} Bb4 {[%emt 0:00:00]} 7. Nge2 {[%emt 0:00:00]} Ne7 {[%emt 0:00:00]} 8. Ng3 {[%emt 0:00:00]} Bg6 {[%emt 0:02:30]} 9. Bg5 {[%emt 0:04:00]} Qa5 {[%emt 0:00:00]} 10. Qb3 {[%emt 0:00:30]} c5 {[%emt 0:01:00]} 11. O-O-O {[%emt 0:00:30]} Bxc3 {[%emt 0:00:00]} 12. Qxc3 {[%emt 0:00:00]} Qxc3+ {[%emt 0:00:00]} 13. bxc3 {[%emt 0:01:00]} cxd4 {[%emt 0:01:30]} 14. Bxe7 {[%emt 0:00:00]} Kxe7 {[%emt 0:00:00]} 15. cxd5 {[%emt 0:00:00]} Rc8 {[%emt 0:00:00]} 16. d6+ {[%emt 0:00:00]} Kd8 {[%emt 0:00:00]} 17. c4 {[%emt 0:00:00]} b5 {[%emt 0:00:00]} 18. f4 {[%emt 0:00:00]} Nc6 {[%emt 0:00:00]} 19. Be2 {[%emt 0:00:00]} bxc4 {[%emt 0:00:00]} 20. Bxh5 {[%emt 0:00:00]} Bxh5 {[%emt 0:00:00]} 21. Nxh5 {[%emt 0:00:00]} d3 {[%emt 0:00:00]} 22. Nxg7 {[%emt 0:04:30]} Rab8 {[%emt 0:00:00]} 23. h5 {[%emt 0:00:00]} Nb4 {[%emt 0:00:00]} 24. a3 {[%emt 0:00:00]} Na2+ {[%emt 0:00:00]} 25. Kd2 {[%emt 0:00:00]} Rb2+ {[%emt 0:00:00]} 26. Ke3 {[%emt 0:00:00]} Nc3 {[%emt 0:06:30]} 27. Rdg1 {[%emt 0:00:00]} Nd5+ {[%emt 0:00:00]} 28. Kf3 {[%emt 0:00:00]} c3 {[%emt 0:01:00]} 29. h6 {[%emt 0:03:30]} c2 {[%emt 0:00:00]} 30. f5 {[%emt 0:00:00]} Kd7 {[%emt 0:00:00]} 31. fxe6+ {[%emt 0:00:00]} fxe6 {[%emt 0:00:00]} 32. h7 {[%emt 0:00:00]} d2 {[%emt 0:00:00]} 33. Nh5 {[%emt 0:00:00]} Rh8 {[%emt 0:00:00]} 34. Nf6+ {[%emt 0:00:59]} Nxf6 {[%emt 0:00:00]} 35. exf6 {[%emt 0:00:02]} Kxd6 {[%emt 0:03:30]} 36. g4 {[%emt 0:01:47]} Rxh7 {[%emt 0:00:00]} 0-1